Cogmind - Beta 15 @@@ ROGUE MODE // 2025.05.26 @ 22:28:22 Player: pakman Result: Destroyed by S4-M77(R) with Subdweller Machine Gun Performance ------------- Evolutions (0) 0 Regions Visited (3) 600 Robots Destroyed (36) 180 Value Destroyed (364) 364 Prototype IDs (2) 40 Alien Tech Used (0) 0 Bonus (25) 25 TOTAL SCORE: 1209 Bonus ------- Follower Combat Kills 25 Cogmind --------- Core Integrity 0/250 Matter 300/300 Energy 265/265 System Corruption 0% Temperature Cool (6) Movement Rolling (95) Ox1 Location -10/Subcaves Parts ------- > --- POWER (1) -------- Improved Ion Engine > --- PROPULSION (2) --- Light Treads Wheel > --- UTILITY (2) ------ Small Storage Unit Seismic Detector > --- WEAPON (2) ------- Small Laser Particle Gun > --- INVENTORY (8) ---- Light Ion Engine Advanced Treads Compact Wheel Improved Heat Sink Hardened Medium Armor Plating Beamcaster Shock Bomb Launcher Axe Peak State ------------ > --- POWER ------------ Improved Ion Engine > --- PROPULSION ------- Light Treads Wheel > --- UTILITY ---------- Small Storage Unit Seismic Detector > --- WEAPON ----------- Small Laser Particle Gun > --- INVENTORY -------- Light Ion Engine Advanced Treads Compact Wheel Improved Heat Sink Hardened Medium Armor Plating Beamcaster Shock Bomb Launcher Axe [Rating: 11] Favorites ----------- Power Improved Ion Engine Engine Improved Ion Engine Propulsion Wheel Treads Light Treads Wheel Wheel Utility Small Storage Unit Device Seismic Detector Storage Small Storage Unit Weapon Small Laser Energy Gun Small Laser Ballistic Gun Light Assault Rifle Slashing Weapon Mining Claw Build | -11 -10 -10 -10 ------- Run | Yrd Mat Min Sub Slots Evolved . | . . . . Power . | . . . . Propulsion . | . . . . Utility . | . . . . Weapon . | . . . . Parts Attached 17 | 8 3 6 . Power 4 | 2 1 1 . Engine 4 | 2 1 1 . Core . | . . . . Reactor . | . . . . Propulsion 4 | 2 . 2 . Treads 2 | 1 . 1 . Leg . | . . . . Wheel 2 | 1 . 1 . Hover . | . . . . Flight . | . . . . Utility 3 | 2 . 1 . Device 2 | 1 . 1 . Storage 1 | 1 . . . Processor . | . . . . Hackware . | . . . . Protection . | . . . . Artifact . | . . . . Weapon 6 | 2 2 2 . Energy Gun 4 | 1 1 2 . Energy Cannon . | . . . . Ballistic Gun 1 | 1 . . . Ballistic Cannon . | . . . . Launcher . | . . . . Special Weapon . | . . . . Impact Weapon . | . . . . Slashing Weapon 1 | . 1 . . Piercing Weapon . | . . . . Special Melee Weapon . | . . . . Unidentified Prototypes . | . . . . Parts Lost 1 | . . 1 . Power . | . . . . Propulsion . | . . . . Utility 1 | . . 1 . Weapon . | . . . . Highest Loss Streak 1 | . . 1 . To Critical Strikes . | . . . . Average Backups 7 | 3 6 7 8 Power 1 | 1 1 1 1 Propulsion 1 | 1 2 2 2 Utility 1 | . 1 2 2 Weapon 1 | . 1 2 3 Tool/Special . | . . . . Unused Backups 16 | . 1 7 8 Power 2 | . 1 . 1 Propulsion 3 | . . 1 2 Utility 5 | . . 3 2 Weapon 6 | . . 3 3 Tool/Special . | . . . . Average Slot Usage (%) 99 | . 99 99 100 Engine 13 | . 13 14 14 Treads 13 | . 13 14 14 Wheel 14 | . 14 14 14 Device 13 | . 14 13 14 Storage 14 | . 14 14 14 Energy Gun 23 | . 17 27 28 Ballistic Gun 2 | . 5 . . Slashing Weapon 2 | . 5 . . Peak Build Rating 11 | 7 7 11 11 Average Rating 7 | 5 6 8 11 On Entrance 6 | . 7 7 11 Naked Turns . | . . . . Heaviest Build 17 | 12 12 17 17 Greatest Support 20 | 20 20 20 10 Greatest Overweight (x) 3 | . 3 1 1 Average Overweight (x) . | . . . 1 Largest Inventory Capacity 8 | 8 8 8 8 Average Capacity 7 | 7 8 8 8 Most Carried 8 | 5 8 8 8 Average Carried 7 | 3 6 7 8 Final Capacity 8 | 8 8 8 8 Final Carried 8 | 5 8 8 8 Class Distribution -------------------- 92% | Mutant 7% | Scavenger-Mutant Dominant Class ---------------- Mutant | -10/Materials Mutant | -10/Mines Scavenger-Mutant | -10/Subcaves Resources | -11 -10 -10 -10 ----------- Run | Yrd Mat Min Sub Matter Collected 598 | 286 108 204 . Remotely . | . . . . Salvage Created 801 | 119 132 550 . Parts 73 | 11 16 46 . Haulers Intercepted . | . . . . Recyclers Shooed 2 | . 1 1 . Parts Field Recycled . | . . . . Retrieved Matter . | . . . . Parts Self-Destructed . | . . . . Prevented . | . . . . Kills | -11 -10 -10 -10 ------- Run | Yrd Mat Min Sub Combat Hostiles Destroyed 15 | . 7 8 . Guns 15 | . 7 8 . Classes Destroyed 8 | 3 2 3 . Worker 8 | 2 . 6 . Builder 4 | . . 4 . Tunneler 5 | 3 . 2 . Recycler 2 | 1 . 1 . Watcher 2 | . 2 . . Swarmer 12 | . 7 5 . Grunt 1 | . . 1 . Sentry 2 | . . 2 . Best Kill Streak 7 | 3 3 7 . Combat Bots Only 3 | . 3 3 . Max Kills in Single Turn 2 | 2 1 2 . Gunslinging . | . . . . Exploded . | . . . . Melee . | . . . . Uniques/NPCs Destroyed . | . . . . Combat | -11 -10 -10 -10 -------- Run | Yrd Mat Min Sub Hostile Shots Fired 97 | . 42 43 12 Missed 24 | . 8 11 5 Hits 73 | . 34 32 7 Projectile 73 | . 34 32 7 Critical Strikes 1 | . . 1 . Damage Taken 784 | . 279 375 130 Core 253 | . 67 129 57 Absorbed by Shields . | . . . . Core Remaining (%) 100 | 100 . . . Volleys Fired 87 | 16 23 42 6 Largest 2 | 2 2 2 2 Hottest 105 | 60 80 80 105 Shots Fired 174 | 32 46 84 12 Gun 174 | 32 46 84 12 Cannon . | . . . . Launcher . | . . . . Special . | . . . . Kinetic 23 | 16 7 . . Thermal 151 | 16 39 84 12 Explosive . | . . . . Electromagnetic . | . . . . Robot Hit Streak 10 | 6 4 10 8 Robot Miss Streak 4 | 2 4 3 2 Penetration Max . | . . . . Secondary Targets 3 | . 1 2 . Max Gunslinging Chain 1 | . 1 1 . Shots Hit Robots 105 | 19 20 57 9 Core Hits 46 | 7 12 25 2 Critical Kills . | . . . . Critical Parts Destroyed . | . . . . Critical Strikes . | . . . . Melee Attacks 10 | . 10 . . Impact . | . . . . Slashing 10 | . 10 . . Piercing . | . . . . Sneak Attacks . | . . . . Combat Hostiles . | . . . . Follow-up Attacks . | . . . . Damage Inflicted 1191 | 208 236 639 108 Guns 1191 | 208 236 639 108 Cannons . | . . . . Explosions . | . . . . Melee . | . . . . Ramming . | . . . . Kinetic 97 | 71 26 . . Thermal 1094 | 137 210 639 108 Explosive . | . . . . Electromagnetic . | . . . . Impact . | . . . . Slashing . | . . . . Piercing . | . . . . Highest Corruption . | . . . . Average Corruption . | . . . . Corruption Purged . | . . . . Corruption Blocked . | . . . . Overload Shots . | . . . . Overflow Damage . | . . . . Projectiles . | . . . . Explosions . | . . . . Melee . | . . . . Knockbacks . | . . . . Impact . | . . . . Kinetic . | . . . . Secondary . | . . . . Self-Inflicted Damage . | . . . . Shots . | . . . . Rammed . | . . . . Targets Rammed . | . . . . Kicked . | . . . . Crushed . | . . . . Highest Temperature 252 | 40 90 252 2 Average Temperature 41 | 17 35 51 2 Received Heat Transfer 123 | . . 99 24 Siege Activations . | . . . . Martial Activations . | . . . . Shielding Activations . | . . . . Robots Disrupted . | . . . . Combat Hostiles . | . . . . Robots Corrupted . | . . . . Combat Hostiles . | . . . . Parts Fried . | . . . . Impact Corruptions . | . . . . Robots Melted . | . . . . Combat Hostiles . | . . . . Parts Melted 4 | . 1 3 . Heat Transferred 2498 | 300 475 1450 273 Parts Sabotaged . | . . . . Parts Stolen . | . . . . Parts Stripped . | . . . . Power Chain Reactions . | . . . . Alert | -11 -10 -10 -10 ------- Run | Yrd Mat Min Sub Maximum Alert Level . | . . . . Low Security (%) 100 | 100 100 100 . Level 1 . | . . . . Level 2 . | . . . . Level 3 . | . . . . Level 4 . | . . . . Level 5 . | . . . . High Security . | . . . . Max Security . | . . . . Peak Influence 117 | 10 111 117 . Initial 18 | . . 18 . Average 33 | 1 32 38 . Influence Increases 644 | 30 250 364 . Destroy 0b10 Robot/C 360 | . 140 220 . Destroy 0b10 Robot/NC 105 | 30 10 65 . Destroy Leader 54 | . 24 30 . Allied During Kill 19 | . . 19 . Successful Hack 23 | . 23 . . Destroy Structure 8 | . 8 . . Lose Combat Pursuer 75 | . 45 30 . Influence Decreases 644 | 30 203 388 23 Entered New Map 42 | . . 29 13 Time Decay 572 | 30 203 329 10 Lost Part 10 | . . 10 . Lost Ally 20 | . . 20 . Squads Dispatched 2 | . 1 1 . Investigation 2 | . 1 1 . Extermination . | . . . . Reinforcement . | . . . . Assault . | . . . . Garrison . | . . . . Intercept . | . . . . Searches Triggered . | . . . . Construction Impeded . | . . . . Haulers Reinforced . | . . . . Active Scanning Responses . | . . . . Cargo Convoy Interrupts . | . . . . Stealth | -11 -10 -10 -10 --------- Run | Yrd Mat Min Sub Distress Signals 1 | . 1 . . Communications Jammed . | . . . . Distress Signals . | . . . . Times Spotted 29 | . 15 12 2 Peak Tracking Total 4 | . 4 3 2 Tactical Retreats 3 | . 2 1 . Traps | -11 -10 -10 -10 ------- Run | Yrd Mat Min Sub Traps Triggered 1 | . 1 . . Indirectly . | . . . . Trap Hack Attempts . | . . . . Triggered . | . . . . Disarmed . | . . . . Reprogrammed . | . . . . Reused . | . . . . Traps Extracted . | . . . . Installed . | . . . . Triggered . | . . . . Machines | -11 -10 -10 -10 ---------- Run | Yrd Mat Min Sub Machines Disabled . | . . . . Max in Single Turn . | . . . . Machines Repaired . | . . . . Machines Dismantled . | . . . . Machines Sabotaged . | . . . . Overloaded Fab Kills . | . . . . Hacking | -11 -10 -10 -10 --------- Run | Yrd Mat Min Sub Machines Accessed 6 | . 4 2 . Terminals 4 | . 4 . . Fabricators . | . . . . Repair Stations . | . . . . Recycling Units . | . . . . Scanalyzers . | . . . . Garrison Access . | . . . . Total Hacks 14 | . 12 2 . Successful 7 | . 5 2 . Failed 7 | . 7 . . Catastrophic 1 | . 1 . . Database Lockouts . | . . . . Manual 1 | . 1 . . Terminals 12 | . 12 . . Fabricators . | . . . . Repair Stations . | . . . . Recycling Units . | . . . . Scanalyzers . | . . . . Garrison Access . | . . . . Terminal Hacks 7 | . 5 2 . Robot Analysis 1 | . 1 . . Prototype ID Bank 1 | . 1 . . Open Door 2 | . . 2 . Locate Traps 2 | . 2 . . Zone Layout 1 | . 1 . . Fabricator Hacks . | . . . . Repair Station Hacks . | . . . . Recycling Unit Hacks . | . . . . Scanalyzer . | . . . . Garrison Access Hacks . | . . . . Unauthorized Hacks . | . . . . Terminals . | . . . . Fabricators . | . . . . Repair Stations . | . . . . Recycling Units . | . . . . Scanalyzers . | . . . . Garrison Access . | . . . . Data Cores Recovered . | . . . . Used . | . . . . Hacking Detections 4 | . 4 . . Full Trace Events 1 | . 1 . . Feedback Events . | . . . . Feedback Blocked . | . . . . Robot Schematics Acquired . | . . . . Robots Built . | . . . . Authchips . | . . . . Time . | . . . . Total Robot Build Rating . | . . . . Part Schematics Acquired . | . . . . Parts Built . | . . . . Authchips . | . . . . Time . | . . . . Total Part Build Rating . | . . . . Parts Repaired . | . . . . Time . | . . . . Parts Recycled . | . . . . Recycled Matter . | . . . . Retrieved Matter . | . . . . Retrieved Components . | . . . . Parts Scanalyzed . | . . . . Part Schematics Acquired . | . . . . Parts Damaged . | . . . . Bothacking | -11 -10 -10 -10 ------------ Run | Yrd Mat Min Sub Used RIF Installer . | . . . . Robots Hacked . | . . . . Non-combat . | . . . . Combat . | . . . . Robot Hacks Applied . | . . . . Relay Couplers Released . | . . . . Fabnet Peak Effective % . | . . . . Robots Rewired . | . . . . Allies Hacked . | . . . . Hacks Repelled . | . . . . Allies | -11 -10 -10 -10 -------- Run | Yrd Mat Min Sub Total Allies 2 | . . 2 . Largest Group 2 | . . 2 1 Highest-Rated Group 39 | . . 39 8 Highest-Rated Ally 31 | . . 31 8 Total Orders . | . . . . Ally Attacks 10 | . . 10 . Total Damage 106 | . . 106 . Kills 3 | . . 3 . Allies Corrupted . | . . . . Allies Melted . | . . . . Intel | -11 -10 -10 -10 ------- Run | Yrd Mat Min Sub Active Infowar (turns) 1956 | 19 808 1096 33 Seismic 1956 | 19 808 1096 33 Robot Analysis Total 1 | . 1 . . Derelict Logs Recovered 3 | . . 2 1 Drone Launches . | . . . . Drone Recoveries . | . . . . Exploration | -11 -10 -10 -10 ------------- Run | Yrd Mat Min Sub Turns Passed 2147 | 189 808 1117 33 Spaces Moved 1430 | 82 423 909 16 Core 5 | 1 4 . . Treads 620 | 80 419 121 . Legs . | . . . . Wheels 805 | 1 . 788 16 Hover . | . . . . Flight . | . . . . Fastest Speed 50 | 50 150 95 95 Average Speed 123 | 157 160 103 95 Slowest Speed 200 | 160 200 160 95 Overloaded Moves . | . . . . Propulsion Burnouts . | . . . . Robots Hopped . | . . . . Potential Cave-ins . | . . . . Cave-ins Triggered . | . . . . Exploration Rate (%) 39 | 4 50 99 4 Regions Visited 3 Branch Regions 2 Pre-discovered Areas . | . . . . Known Exits Taken . | . . . . Unknown Exits Taken 3 | 1 1 1 . Scrap Searched 2 | . . 2 . Spaces Dug 8 | . 8 . . Terrain Destroyed 8 | . 8 . . Melee 8 | . 8 . . Projectile . | . . . . AOE . | . . . . Terrain Rammed . | . . . . Walls Destroyed . | . . . . Machines Disabled . | . . . . Actions | -11 -10 -10 -10 --------- Run | Yrd Mat Min Sub Total 1626 | 110 488 1006 22 Wait 42 | . 15 27 . Move 1427 | 81 422 908 16 Hop . | . . . . Pick Up 19 | 4 6 9 . Fast Attach 11 | 8 3 . . Attach 2 | . 1 1 . Detach 1 | 1 . . . Swap 10 | . 4 6 . Drop 17 | . 4 13 . Fire 87 | 16 23 42 6 Melee 10 | . 10 . . Ram . | . . . . Kick . | . . . . Crush . | . . . . Escape Stasis . | . . . . Rewire . | . . . . Trap . | . . . . Miscellaneous . | . . . . Route ------- -11/Scrapyard -10/Materials (discovered 2 exits: [*Mat] / *Min) -10/Mines (discovered 3 exits: [*Mat x2] / [*Sub]) -10/Subcaves History --------- Turn | Location | Event 19 | -11/Scrapyard | Discovered new exit (range 16) 190 | -11/Scrapyard | Entered Materials 306 | -10/Materials | Build established: Mutant 573 | -10/Materials | Discovered new exit (range 11) 923 | -10/Materials | Discovered new exit (range 6) 998 | -10/Materials | Entered Mines 1002 | -10/Mines | Met a Derelict bent on vengeance 1029 | -10/Mines | Core integrity fell below 50% 1123 | -10/Mines | Found a hidden stash of uninstalled traps 1277 | -10/Mines | Met a Derelict who couldn't figure out how to use a Trap Extractor 1353 | -10/Mines | Discovered new exit (range 5) 1571 | -10/Mines | Discovered new exit (range 15) 1750 | -10/Mines | Discovered new exit (range 6) 1785 | -10/Mines | Met a Derelict shopkeep closing up shop 2115 | -10/Mines | Entered Subcaves 2115 | -10/Subcaves | Accompanied by 1 ally 2132 | -10/Subcaves | Core integrity fell below 20% 2148 | -10/Subcaves | Destroyed by S4-M77(R) with Subdweller Machine Gun Last Messages --------------- 01922_ Acquired Beamcaster. 01936_ K-01 Serf destroyed. 01950_ A derelict emerges from the shadows: "Quick, help me dispose of these Unaware!" 01953_ G-47 Trooper: "SECOND INTRUDER APPROACHING. ELIMINATE." 01953_ G-34 Mercenary destroyed. 01957_ YG-BKB(g): "Mission, incomplete...*fzzt*" 01957_ YG-BKB(g) destroyed. 01962_ SN-30B(g) destroyed. 01968_ G-47 Trooper destroyed. 01991_ Dropped Heat Sink. 01991_ Acquired Imp. Heat Sink. 02001_ Dropped Sml. Laser. 02008_ Acquired 20 matter. 02082_ T-07 Excavator is excavating. LOCATION=UNKNOWN AMBIENT_HEAT=-10 GOAL=ESCAPE 02121_ Acquired derelict log, extracted data. Data stored: Storage entrances (x1). Map ----- +----------------------------------------------------+ | ?????????????????????????????????????????????????? | | ?????????????????????????????????????????????????? | | ????????????????????????????????? ??????????????? | | ???????????????????????????????? ?????????????? | | ???????????????????????????????? ?????????????? | | ???????????????????????????????? ??????????????? | | ??????????????????????????????? ???????????????? | | ??????????????????????????????? #???????????????? | | ???????????????????????????#### #????????????????? | | ????????????????##?????????# #????????????????? | | ???????????????## #####?#### #????????????????? | | ??????????????## ### #????????????????? | | ??????????????# #?????????????????? | | ??????????????# ##????????????????? | | ??????????????# ##???????????????? | | ???????????????# #???????????????? | | ???????????????# #??????????? | | ???????????????## ## ##??????????? | | ????????????????## ### #???????????? | | ?????????????????#### ### #???????????? | | ????????????????????## ##?? #???????????? | | ?????????????????????# ##??## #???????????? | | ?????????????????????# #???? ##???????????? | | ?????????????????????## ##????# #????????????? | | ?????????????????????# ##???? ##????????????? | | ?????????????????????## @ #???? ##?????????????? | | ??????????????????????# #??? #??????????????? | | ??????????????????????# #?? ??????????????? | | ??????????????????????#####RR #???#??????????????? | | ??????????????????????????? #??????????????????? | | ??????????????????????????? #??????????????????? | | ???????????????????????????? #??????????????????? | | ???????????????????????????? #??????????????????? | | ????????????????????????????? ??????????????????? | | ?????????????????????????????? ?????????????????? | | ?????????????????????????????? # ????????????????? | | ??????????????????????????????? ?????????????????? | | ??????????????????????????????? ?????????????????? | | ????????????????????????????????#????????????????? | | ?????????????????????????????????????????????????? | | ?????????????????????????????????????????????????? | | ?????????????????????????????????????????????????? | | ?????????????????????????????????????????????????? | | ?????????????????????????????????????????????????? | | ?????????????????????????????????????????????????? | | ?????????????????????????????????????????????????? | | ?????????????????????????????????????????????????? | | ?????????????????????????????????????????????????? | | ?????????????????????????????????????????????????? | | ?????????????????????????????????????????????????? | +----------------------------------------------------+ Best States ------------- Heat Dissipation 25 Energy Generation 12 Energy Capacity 265 Matter Stores 300 Matter Capacity 300 Sight Range 16 Terrain Scan Density 10 Evasion (%) 41 Recoil Reduction 1 Item Schematics ----------------- None Robot Schematics ------------------ None Fabricated ------------ Nothing Repaired ---------- Nothing Alien Tech Used ----------------- None Achievements -------------- None Challenges ------------ None Game ------ Seed RefinerySwordStrikerail Manual? 0 Play Time 00:22:32 Cumulative 52.7 hours Start 2025.05.26 @ 22:04:28 End 2025.05.26 @ 22:28:22 Sessions 1 Manual Loads 0 Difficulty Rogue Special Mode None Game No. 57 Rogue 57 Adventurer 0 Explorer 0 Win Type - Total 0 Types 0/0/0/0/0/0/0/0/0/0 Lore% 23 Gallery% 28 Achievement% 26 Wizard Run 0 Options --------- Layout 0 ASCII 0 Keyboard 1 Movement Numpad Keybinds 0 Fullscreen 2 Font 18/SmallcapsGlow Map View 76x50 Zoom Use 0% Tactical HUD 1 Map Filters NONE Filters NONE Steam 1 RUN: 7f3c650f-dc2c-47e5-9840-e6d1a444d2d0